fUSD/lending_fUSD_20240116
["ID","MTS","AMOUNT","RATE_DAILY","PERIOD"]
[311735391,1705369750567,-598.77,0.00022176,2]
[311735392,1705369750586,-581.86,0.00022176,2]
[311735393,1705369750606,-1173.76,0.00022176,2]
[311735394,1705369750627,-760.12,0.00022176,2]
[311735395,1705369750648,-638.35,0.00022176,2]
[311735396,1705369750668,-760.79,0.00022176,2]
[311735397,1705369750689,-674.1,0.00022176,2]
[311735398,1705369750709,-754.14,0.00022176,2]
[311735399,1705369750730,-543.4,0.00022176,2]
[311735400,1705369750753,-22811.62,0.00022176,2]
[311735401,1705369750775,-618.8,0.00022176,2]
[311735402,1705369750797,-500.0,0.00022176,2]
[311735403,1705369750819,-1906.27,0.00022176,2]
[311735404,1705369750838,-631.3,0.00022176,2]
[311735405,1705369750859,-500.0,0.00022176,2]
[311735406,1705369750880,-668.76,0.00022176,2]
[311735407,1705369750903,-500.0,0.00022176,2]
[311735408,1705369750925,-2473.1,0.00022176,2]
[311735411,1705369772845,250.0,0.00022077,2]
[311735412,1705369779313,5514.9163,0.00022077,2]
[311735413,1705369782567,2997.0227,0.00022076,2]
[311735416,1705369798062,180.15930311,0.00021178,2]
[311735418,1705369814542,53606.2406,0.00022077,2]
[311735427,1705369831995,-416.23645197,0.00022175,2]
[311735428,1705369832007,-145.45354803,0.00022175,2]
[311735429,1705369832016,-328.15018153,0.00022175,2]
[311735430,1705369832112,-569.47981847,0.00022175,2]
[311735431,1705369832122,-60.33620865,0.00022175,2]
[311735432,1705369832257,-439.66379135,0.00022175,2]
[311735433,1705369832267,-247.18859453,0.00022175,2]
[311735434,1705369832278,-414.05140547,0.00022175,2]
[311735435,1705369832287,-150.23675267,0.00022175,2]
[311735436,1705369832299,-300.0,0.00022175,2]
[311735437,1705369832319,-213.80324733,0.00022175,2]
[311735438,1705369832330,-723.47,0.00022176,2]
[311735439,1705369832339,-715.28,0.00022176,2]
[311735440,1705369832349,-575.68,0.00022176,2]
[311735441,1705369832358,-500.0,0.00022176,2]
[311735442,1705369832368,-500.0,0.00022176,2]
[311735443,1705369832377,-612.3,0.00022176,2]
[311735444,1705369832386,-500.0,0.00022176,2]
[311735445,1705369832395,-500.0,0.00022176,2]
[311735446,1705369832404,-500.0,0.00022176,2]
[311735447,1705369832414,-85.88140962,0.00022176,2]
[311735448,1705369832426,-414.11859038,0.00022176,2]
[311735449,1705369832436,-500.0,0.00022176,2]
[311735450,1705369832446,-500.0,0.00022176,2]
[311735451,1705369832455,-500.0,0.00022176,2]
[311735452,1705369832465,-736.91,0.00022176,2]
[311735453,1705369832475,-772.82,0.00022176,2]
[311735454,1705369832484,-500.0,0.00022176,2]
[311735455,1705369832493,-1664.32,0.00022176,2]
[311735456,1705369832502,-500.0,0.00022176,2]
[311735457,1705369832511,-689.16,0.00022176,2]
[311735458,1705369832520,-500.0,0.00022176,2]
[311735459,1705369832530,-500.0,0.00022176,2]
[311735460,1705369832539,-500.0,0.00022176,2]
[311735461,1705369832549,-775.74,0.00022176,2]
[311735462,1705369832558,-500.0,0.00022176,2]
[311735463,1705369832567,-500.0,0.00022176,2]
[311735464,1705369832577,-500.0,0.00022176,2]
[311735465,1705369832586,-500.0,0.00022176,2]
[311735466,1705369832595,-1452.59,0.00022176,2]
[311735467,1705369832604,-601.11,0.00022176,2]
[311735468,1705369832613,-500.0,0.00022176,2]
[311735469,1705369832622,-500.0,0.00022176,2]
[311735470,1705369832631,-1361.06,0.00022176,2]
[311735471,1705369832640,-1003.91,0.00022176,2]
[311735472,1705369832650,-565.56,0.00022176,2]
[311735473,1705369832660,-505.08268914,0.00022176,2]
[311735474,1705369832669,-2557.65,0.00022176,2]
[311735475,1705369832678,-500.0,0.00022176,2]
[311735476,1705369832687,-537.74,0.00022176,2]
[311735477,1705369832697,-500.0,0.00022176,2]
[311735478,1705369832706,-500.0,0.00022176,2]
[311735479,1705369832715,-500.0,0.00022176,2]
[311735480,1705369832724,-512.17141126,0.00022176,2]
[311735481,1705369832734,-500.0,0.00022176,2]
[311735482,1705369832743,-5256.49,0.00022176,2]
[311735483,1705369832752,-2932.65,0.00022176,2]
[311735484,1705369832762,-3298.35,0.00022176,2]
[311735485,1705369832771,-500.0,0.00022176,2]
[311735486,1705369832780,-500.0,0.00022176,2]
[311735487,1705369832789,-553.28,0.00022176,2]
[311735488,1705369832798,-825.71,0.00022176,2]
[311735489,1705369832807,-500.0,0.00022176,2]
[311735490,1705369832816,-629.25,0.00022176,2]
[311735491,1705369832825,-892.85,0.00022176,2]
[311735492,1705369832834,-503.85,0.00022176,2]
[311735493,1705369832843,-2188.19,0.00022176,2]
[311735494,1705369832852,-500.0,0.00022176,2]
[311735495,1705369832861,-616.26,0.00022176,2]
[311735496,1705369832871,-799.4,0.00022176,2]
[311735497,1705369832880,-602.41,0.00022176,2]
[311735498,1705369832889,-1868.36,0.00022176,2]
[311735499,1705369832898,-569.92,0.00022176,2]
[311735500,1705369832907,-1563.4,0.00022176,2]
[311735501,1705369832916,-500.0,0.00022176,2]
[311735502,1705369832925,-500.0,0.00022176,2]
[311735503,1705369832934,-500.0,0.00022176,2]
[311735504,1705369832943,-500.0,0.00022176,2]
[311735505,1705369832952,-584.7,0.00022176,2]
[311735506,1705369832962,-1233.79,0.00022176,2]
[311735507,1705369832971,-568.57,0.00022176,2]
[311735508,1705369832980,-1164.43,0.00022176,2]
[311735509,1705369832989,-500.0,0.00022176,2]
[311735510,1705369832998,-42.77374601,0.00022176,2]
[311735511,1705369833011,-1026.67625399,0.00022176,2]
[311735512,1705369833020,-714.94,0.00022176,2]
[311735513,1705369833029,-500.0,0.00022176,2]
[311735514,1705369833039,-2160.43,0.00022176,2]
[311735515,1705369833048,-907.23,0.00022176,2]
[311735516,1705369833057,-2670.98,0.00022176,2]
[311735517,1705369833066,-500.0,0.00022176,2]
[311735518,1705369833075,-674.43,0.00022176,2]
[311735519,1705369833084,-627.92,0.00022176,2]
[311735520,1705369833093,-54.07683828,0.00022176,2]
[311735521,1705369837327,250.0,0.00021918,2]
[311735607,1705369840683,-801.03,0.00022175,2]
[311735608,1705369840693,-1331.07000001,0.00022175,2]
[311735615,1705369840793,-182.26999999,0.00022175,2]
[311735616,1705369840803,-616.59316172,0.00022176,2]
[311735617,1705369840813,-500.0,0.00022176,2]
[311735618,1705369840823,-911.51,0.00022176,2]
[311735619,1705369840832,-4396.18110251,0.00022176,2]
[311735621,1705369841431,-112.90889749,0.00022176,2]
[311735622,1705369841441,-7348.78402513,0.00022176,2]
[311735623,1705369841454,-883.45597487,0.00022176,2]
[311735624,1705369841463,-4487.95,0.00022176,2]
[311735625,1705369841472,-500.0,0.00022176,2]
[311735626,1705369841482,-500.0,0.00022176,2]
[311735627,1705369841491,-1015.86,0.00022176,2]
[311735628,1705369841500,-1219.56,0.00022176,2]
[311735629,1705369841510,-340.39281986,0.00022176,2]
[311735630,1705369841521,-159.60718014,0.00022176,2]
[311735631,1705369841530,-8784.17668448,0.00022176,2]
[311735632,1705369841542,-3594.45331552,0.00022176,2]
[311735633,1705369841552,-549.33514449,0.00022176,2]
[311735634,1705369841561,-1890.79,0.00022176,2]
[311735635,1705369841570,-500.0,0.00022176,2]
[311735636,1705369841579,-629.81,0.00022176,2]
[311735637,1705369841589,-637.87,0.00022176,2]
[311735638,1705369841598,-500.0,0.00022176,2]
[311735639,1705369841608,-500.0,0.00022176,2]
[311735640,1705369841617,-275.29020151,0.00022176,2]
[311735641,1705369841628,-4260.48979849,0.00022176,2]
[311735642,1705369841638,-3070.8,0.00022176,2]
[311735643,1705369841647,-500.0,0.00022176,2]
[311735644,1705369841656,-585.88,0.00022176,2]
[311735645,1705369841666,-526.6704364,0.00022176,2]
[311735646,1705369841678,-293.97111,0.00022176,2]
[311735647,1705369841704,-518.0284536,0.00022176,2]
[311735648,1705369841713,-285.3932634,0.00022176,2]
[311735649,1705369841749,-285.2667366,0.00022176,2]
[311735650,1705369841758,-94.75479734,0.00022176,2]
[311735653,1705369843085,-405.24520266,0.00022176,2]
[311735654,1705369843094,-744.51,0.00022176,2]
[311735655,1705369843104,-2872.6,0.00022176,2]
[311735656,1705369843113,-500.0,0.00022176,2]
[311735657,1705369843122,-4734.42,0.00022176,2]
[311735658,1705369843132,-500.0,0.00022176,2]
[311735659,1705369843141,-909.36,0.00022176,2]
[311735660,1705369843150,-513.69877806,0.00022176,2]
[311735661,1705369843160,-500.0,0.00022176,2]
[311735662,1705369843169,-500.0,0.00022176,2]
[311735663,1705369843178,-726.9,0.00022176,2]
[311735664,1705369843188,-505.75972992,0.00022176,2]
[311735665,1705369843198,-1638.83,0.00022176,2]
[311735666,1705369843207,-3282.07,0.00022176,2]
[311735667,1705369843217,-500.0,0.00022176,2]
[311735668,1705369843226,-3946.11,0.00022176,2]
[311735669,1705369843236,-7471.19,0.00022176,2]
[311735670,1705369843245,-550.3,0.00022176,2]
[311735671,1705369843254,-1973.28,0.00022176,2]
[311735672,1705369843264,-500.0,0.00022176,2]
[311735673,1705369843273,-500.0,0.00022176,2]
[311735674,1705369843282,-676.76,0.00022176,2]
[311735675,1705369843292,-640.8,0.00022176,2]
[311735676,1705369843301,-9671.77,0.00022176,2]
[311735677,1705369843310,-700.03,0.00022176,2]
[311735678,1705369843319,-513.56,0.00022176,2]
[311735679,1705369843330,-1626.55,0.00022176,2]
[311735680,1705369843339,-500.0,0.00022176,2]
[311735681,1705369843350,-3145.4,0.00022176,2]
[311735682,1705369843360,-1381.39,0.00022176,2]
[311735683,1705369843371,-500.0,0.00022176,2]
[311735684,1705369843380,-500.0,0.00022176,2]
[311735685,1705369843389,-1000.6,0.00022176,2]
[311735686,1705369843399,-500.0,0.00022176,2]
[311735687,1705369843408,-500.0,0.00022176,2]
[311735688,1705369843417,-649.89,0.00022176,2]
[311735689,1705369843427,-500.0,0.00022176,2]
[311735690,1705369843436,-602.86,0.00022176,2]
[311735691,1705369843446,-674.03,0.00022176,2]
[311735692,1705369843455,-500.0,0.00022176,2]
[311735693,1705369843465,-500.0,0.00022176,2]
[311735694,1705369843475,-253.37820126,0.00022176,2]
[311735695,1705369843575,-246.62179874,0.00022176,2]
[311735696,1705369843613,-795.27,0.00022176,2]
[311735697,1705369843622,-500.0,0.00022176,2]
[311735698,1705369843632,-500.0,0.00022176,2]
[311735699,1705369843642,-500.0,0.00022176,2]
[311735700,1705369843652,-467.43310285,0.00022176,2]
[311735701,1705369843664,-2374.58689715,0.00022176,2]
[311735702,1705369843673,-501.91,0.00022176,2]
[311735703,1705369843682,-500.0,0.00022176,2]
[311735704,1705369843692,-6844.66827602,0.00022176,2]
[311735705,1705369843703,-1771.22584061,0.00022176,2]
[311735706,1705369843715,-1321.86465,0.00022176,2]
[311735707,1705369843726,-498.16858409,0.00022176,2]
[311735708,1705369843739,-2612.46264928,0.00022176,2]
[311735709,1705369843748,-500.0,0.00022176,2]
[311735710,1705369843757,-1839.41603358,0.00022176,2]
[311735711,1705369843769,-333.51051412,0.00022176,2]
[311735712,1705369843866,-20874.1534523,0.00022176,2]
[311735713,1705369843876,-361.88773913,0.00022176,2]
[311735714,1705369843885,-500.0,0.00022176,2]
[311735715,1705369843894,-500.0,0.00022176,2]
[311735716,1705369843903,-500.0,0.00022176,2]
[311735717,1705369843913,-500.0,0.00022176,2]
[311735718,1705369843923,-5471.5,0.00022176,2]
[311735719,1705369843933,-500.0,0.00022176,2]
[311735720,1705369843942,-500.0,0.00022176,2]
[311735721,1705369843951,-500.0,0.00022176,2]
[311735722,1705369843961,-991.81,0.00022176,2]
[311735723,1705369843970,-500.0,0.00022176,2]
[311735724,1705369843980,-7444.88,0.00022176,2]
[311735725,1705369843990,-265.12,0.00022176,2]
[311735726,1705369843999,-1081.42,0.00022176,2]
[311735727,1705369844008,-500.0,0.00022176,2]
[311735728,1705369844018,-500.0,0.00022176,2]
[311735729,1705369844030,-500.0,0.00022176,2]
[311735730,1705369844039,-511.29850622,0.00022176,2]
[311735731,1705369844049,-1173.67,0.00022176,2]
[311735732,1705369844059,-1719.7,0.00022176,2]
[311735733,1705369844069,-607.41,0.00022176,2]
[311735734,1705369844078,-500.0,0.00022176,2]
[311735735,1705369844087,-655.26,0.00022176,2]
[311735736,1705369844097,-737.0,0.00022176,2]
[311735737,1705369844106,-1159.86,0.00022176,2]
[311735738,1705369844115,-500.0,0.00022176,2]
[311735739,1705369844125,-500.0,0.00022176,2]
[311735740,1705369844134,-500.0,0.00022176,2]
[311735741,1705369844144,-500.0,0.00022176,2]
[311735742,1705369844155,-1396.63,0.00022176,2]
[311735743,1705369844165,-500.0,0.00022176,2]
[311735744,1705369844175,-605.94,0.00022176,2]
[311735745,1705369844184,-1154.89,0.00022176,2]
[311735746,1705369844197,-500.0,0.00022176,2]
[311735747,1705369844208,-500.0,0.00022176,2]
[311735748,1705369844218,-500.0,0.00022176,2]
[311735749,1705369844228,-500.0,0.00022176,2]
[311735750,1705369844238,-2741.81,0.00022176,2]
[311735751,1705369844249,-510.00760603,0.00022176,2]
[311735752,1705369844259,-500.0,0.00022176,2]
[311735753,1705369844270,-874.84,0.00022176,2]
[311735754,1705369844279,-1478.5,0.00022176,2]
[311735755,1705369844288,-1364.4,0.00022176,2]
[311735756,1705369844297,-555.22,0.00022176,2]
[311735757,1705369844307,-1031.7,0.00022176,2]
[311735758,1705369844316,-500.0,0.00022176,2]
[311735759,1705369844325,-714.22,0.00022176,2]
[311735760,1705369844335,-1279.64,0.00022176,2]
[311735761,1705369844345,-500.0,0.00022176,2]
[311735762,1705369844354,-990.12,0.00022176,2]
[311735763,1705369844363,-294.87577116,0.00022176,2]
[311735764,1705369844372,-508.25789474,0.00022176,2]
[311735765,1705369844381,-1313.94,0.00022176,2]
[311735766,1705369844391,-500.0,0.00022176,2]
[311735767,1705369844401,-908.98,0.00022176,2]
[311735768,1705369844410,-500.0,0.00022176,2]
[311735769,1705369844419,-641.1,0.00022176,2]
[311735770,1705369844429,-1698.58,0.00022176,2]
[311735771,1705369844438,-572.67,0.00022176,2]
[311735772,1705369844448,-621.03,0.00022176,2]
[311735773,1705369844458,-1295.06,0.00022176,2]
[311735774,1705369844467,-982.34,0.00022176,2]
[311735775,1705369844477,-1298.14,0.00022176,2]
[311735776,1705369844487,-504.73,0.00022176,2]
[311735777,1705369844496,-774.77,0.00022176,2]
[311735778,1705369844505,-500.0,0.00022176,2]
[311735779,1705369844515,-500.0,0.00022176,2]
[311735780,1705369844524,-3434.14,0.00022176,2]
[311735781,1705369844533,-2451.08,0.00022176,2]
[311735782,1705369844543,-1434.4,0.00022176,2]
[311735783,1705369844552,-855.65,0.00022176,2]
[311735784,1705369844561,-500.0,0.00022176,2]
[311735785,1705369844571,-1594.98,0.00022176,2]
[311735786,1705369844580,-500.0,0.00022176,2]
[311735787,1705369844590,-573.35,0.00022176,2]
[311735788,1705369844599,-734.09,0.00022177,2]
[311735789,1705369844608,-484.0,0.00022177,2]
[311735790,1705369844618,-713.28,0.00022177,2]
[311735791,1705369844627,-500.0,0.00022177,2]
[311735792,1705369844637,-639.68,0.00022177,2]
[311735793,1705369844646,-832.12,0.00022177,2]
[311735794,1705369844655,-514.88149818,0.00022177,2]
[311735795,1705369844664,-500.0,0.00022177,2]
[311735796,1705369844674,-160.0,0.00022177,2]
[311735797,1705369844684,-500.0,0.00022177,2]
[311735798,1705369844693,-500.0,0.00022177,2]
[311735799,1705369844702,-500.0,0.00022177,2]
[311735800,1705369844713,-776.99,0.00022177,2]
[311735801,1705369844724,-258.80092479,0.00022177,2]
[311735802,1705369844734,-500.0,0.00022177,2]
[311735803,1705369844745,-952.64,0.00022177,2]
[311735804,1705369844755,-500.0,0.00022177,2]
[311735805,1705369844765,-500.0,0.00022177,2]
[311735806,1705369844775,-598.38,0.00022177,2]
[311735807,1705369844786,-500.0,0.00022177,2]
[311735808,1705369844795,-500.0,0.00022177,2]
[311735809,1705369844806,-500.0,0.00022177,2]
[311735810,1705369844815,-500.0,0.00022177,2]
[311735811,1705369844825,-500.0,0.00022177,2]
[311735812,1705369844835,-500.0,0.00022177,2]
[311735813,1705369844845,-500.0,0.00022177,2]
[311735814,1705369844855,-569.89384828,0.00022177,2]
[311735815,1705369844865,-500.0,0.00022177,2]
[311735816,1705369844875,-500.0,0.00022177,2]
[311735817,1705369844885,-500.0,0.00022177,2]
[311735818,1705369844895,-830.9,0.00022177,2]
[311735819,1705369844907,-500.0,0.00022177,2]
[311735820,1705369844916,-500.0,0.00022177,2]
[311735821,1705369844925,-500.0,0.00022177,2]
[311735822,1705369844934,-1220.27,0.00022177,2]
[311735823,1705369844943,-500.0,0.00022177,2]
[311735824,1705369844952,-500.0,0.00022177,2]
[311735825,1705369844967,-615.04,0.00022177,2]
[311735826,1705369844976,-931.45,0.00022177,2]
[311735827,1705369844986,-500.0,0.00022177,2]
[311735828,1705369844995,-500.0,0.00022177,2]
[311735829,1705369845004,-500.0,0.00022177,2]
[311735830,1705369845014,-1187.78,0.00022177,2]
[311735831,1705369845023,-717.57,0.00022177,2]
[311735832,1705369845033,-595.32,0.00022177,2]
[311735833,1705369845042,-571.26,0.00022177,2]
[311735834,1705369845053,-500.0,0.00022177,2]
[311735835,1705369845063,-792.23,0.00022177,2]
[311735836,1705369845074,-500.0,0.00022177,2]
[311735837,1705369845083,-500.0,0.00022177,2]
[311735838,1705369845093,-500.0,0.00022177,2]
[311735839,1705369845102,-256.70795998,0.00022177,2]
[311735840,1705369845113,-500.0,0.00022177,2]
[311735841,1705369845122,-500.0,0.00022177,2]
[311735842,1705369845132,-500.0,0.00022177,2]
[311735843,1705369845142,-500.0,0.00022177,2]
[311735844,1705369845151,-845.66,0.00022177,2]
[311735845,1705369845161,-500.0,0.00022177,2]
[311735846,1705369845170,-1378.91,0.00022177,2]
[311735847,1705369845180,-500.0,0.00022177,2]
[311735848,1705369845189,-725.27,0.00022177,2]
[311735849,1705369845199,-765.91,0.00022177,2]
[311735850,1705369845211,-500.0,0.00022177,2]
[311735851,1705369845220,-500.0,0.00022177,2]
[311735852,1705369845230,-500.0,0.00022177,2]
[311735853,1705369845240,-1064.39,0.00022177,2]
[311735854,1705369845249,-500.0,0.00022177,2]
[311735855,1705369845259,-1111.67,0.00022177,2]
[311735856,1705369845269,-536.08,0.00022177,2]
[311735857,1705369845278,-975.39,0.00022177,2]
[311735858,1705369845287,-652.14,0.00022177,2]
[311735859,1705369845297,-653.91,0.00022177,2]
[311735860,1705369845306,-500.0,0.00022177,2]
[311735861,1705369845315,-500.0,0.00022177,2]
[311735862,1705369845325,-3575.96,0.00022177,2]
[311735863,1705369845334,-698.74,0.00022177,2]
[311735864,1705369845344,-500.0,0.00022177,2]
[311735865,1705369845354,-640.5,0.00022177,2]
[311735866,1705369845363,-500.0,0.00022177,2]
[311735867,1705369845373,-630.48,0.00022177,2]
[311735868,1705369845382,-695.81,0.00022177,2]
[311735869,1705369845391,-3076.06,0.00022177,2]
[311735870,1705369845401,-500.0,0.00022177,2]
[311735871,1705369845411,-500.0,0.00022177,2]
[311735872,1705369845421,-628.03,0.00022177,2]
[311735873,1705369845432,-504.35,0.00022177,2]
[311735874,1705369845443,-714.29,0.00022177,2]
[311735875,1705369845454,-500.0,0.00022177,2]
[311735876,1705369845465,-500.0,0.00022177,2]
[311735877,1705369845474,-1210.78,0.00022177,2]
[311735878,1705369845484,-577.68,0.00022177,2]
[311735879,1705369845494,-686.68,0.00022177,2]
[311735880,1705369845504,-500.0,0.00022177,2]
[311735881,1705369845516,-984.54,0.00022177,2]
[311735882,1705369845526,-531.4,0.00022177,2]
[311735883,1705369845535,-500.0,0.00022177,2]
[311735884,1705369845545,-1027.22,0.00022177,2]
[311735885,1705369845555,-500.0,0.00022177,2]
[311735886,1705369845565,-884.92,0.00022177,2]
[311735887,1705369845575,-500.0,0.00022177,2]
[311735888,1705369845585,-500.0,0.00022177,2]
[311735889,1705369845595,-753.76,0.00022177,2]
[311735890,1705369845604,-797.89,0.00022177,2]
[311735891,1705369845614,-500.0,0.00022177,2]
[311735892,1705369845623,-649.02,0.00022177,2]
[311735893,1705369845633,-574.11,0.00022177,2]
[311735894,1705369845643,-500.0,0.00022177,2]
[311735895,1705369845653,-761.84,0.00022177,2]
[311735896,1705369845662,-512.91,0.00022177,2]
[311735897,1705369845672,-500.0,0.00022177,2]
[311735898,1705369845682,-500.0,0.00022177,2]
[311735899,1705369845692,-274.19441869,0.00022177,2]
[311735900,1705369845702,-500.0,0.00022177,2]
[311735901,1705369845713,-500.0,0.00022177,2]
[311735902,1705369845723,-500.0,0.00022177,2]
[311735903,1705369845733,-500.54253871,0.00022177,2]
[311735904,1705369845742,-500.0,0.00022177,2]
[311735905,1705369845752,-826.48,0.00022177,2]
[311735906,1705369845762,-515.81,0.00022177,2]
[311735907,1705369845771,-500.0,0.00022177,2]
[311735908,1705369845781,-500.0,0.00022177,2]
[311735909,1705369845791,-577.11,0.00022177,2]
[311735910,1705369845801,-537.27,0.00022177,2]
[311735911,1705369845811,-500.0,0.00022177,2]
[311735912,1705369845821,-500.0,0.00022177,2]
[311735914,1705369845831,-867.38,0.00022177,2]
[311735916,1705369845840,-500.0,0.00022177,2]
[311735917,1705369845850,-966.4,0.00022177,2]
[311735918,1705369845860,-851.05,0.00022177,2]
[311735919,1705369845869,-511.26206005,0.00022177,2]
[311735920,1705369845878,-761.43,0.00022177,2]
[311735922,1705369845888,-595.98,0.00022177,2]
[311735925,1705369845898,-500.0,0.00022177,2]
[311735927,1705369845908,-971.77,0.00022177,2]
[311735929,1705369845918,-500.0,0.00022177,2]
[311735930,1705369845928,-500.0,0.00022177,2]
[311735931,1705369845938,-634.62172852,0.00022177,2]
[311735945,1705369846835,-500.0,0.00022176,2]
[311735946,1705369846846,-132.25827148,0.00022177,2]
[311735947,1705369846856,-678.53,0.00022177,2]
[311735948,1705369846866,-780.33,0.00022177,2]
[311735949,1705369846876,-500.0,0.00022177,2]
[311735950,1705369846886,-500.0,0.00022177,2]
[311735951,1705369846895,-500.0,0.00022177,2]
[311735952,1705369846905,-1178.94,0.00022177,2]
[311735953,1705369846916,-500.0,0.00022177,2]
[311735954,1705369846926,-506.31,0.00022177,2]
[311735955,1705369846936,-662.94,0.00022177,2]
[311735956,1705369846945,-500.35,0.00022177,2]
[311735957,1705369846956,-702.23,0.00022177,2]
[311735958,1705369846966,-1580.43,0.00022177,2]
[311735959,1705369846977,-1069.7,0.00022177,2]
[311735960,1705369846986,-500.0,0.00022177,2]
[311735961,1705369846996,-500.0,0.00022177,2]
[311735962,1705369847006,-554.34,0.00022177,2]
[311735963,1705369847016,-505.57,0.00022177,2]
[311735964,1705369847026,-522.8053736,0.00022177,2]
[311735965,1705369847036,-500.0,0.00022177,2]
[311735966,1705369847046,-500.0,0.00022177,2]
[311735967,1705369847056,-500.0,0.00022177,2]
[311735968,1705369847066,-475.26635492,0.00022177,2]
[311735969,1705369847079,-24.73364508,0.00022177,2]
[311735970,1705369847090,-554.97,0.00022177,2]
[311735971,1705369847100,-302.78282082,0.00022177,2]
[311735972,1705369847366,-393.60717918,0.00022177,2]
[311735973,1705369847376,-500.0,0.00022177,2]
[311735974,1705369847386,-500.0,0.00022177,2]
[311735975,1705369847396,-30.21403947,0.00022177,2]
[311735976,1705369847409,-485.36535827,0.00022177,2]
[311735977,1705369847419,-500.0,0.00022177,2]
[311735978,1705369847429,-500.0,0.00022177,2]
[311735979,1705369847440,-905.81,0.00022177,2]
[311735980,1705369847450,-500.0,0.00022177,2]
[311735981,1705369847460,-518.0,0.00022177,2]
[311735982,1705369847470,-500.0,0.00022177,2]
[311735983,1705369847480,-638.46,0.00022177,2]
[311735984,1705369847489,-500.0,0.00022177,2]
[311735985,1705369847499,-500.0,0.00022177,2]
[311735986,1705369847509,-500.0,0.00022177,2]
[311735987,1705369847519,-932.41,0.00022177,2]
[311735988,1705369847529,-580.13,0.00022177,2]
[311735989,1705369847539,-1409.02,0.00022177,2]
[311735990,1705369847550,-563.45,0.00022177,2]
[311735991,1705369847560,-500.0,0.00022177,2]
[311735992,1705369847570,-918.09,0.00022177,2]
[311735993,1705369847580,-779.18,0.00022177,2]
[311735994,1705369847590,-500.0,0.00022177,2]
[311735995,1705369847601,-500.0,0.00022177,2]
[311735996,1705369847611,-209.42468413,0.00022177,2]
[311735997,1705369847624,-467.96350648,0.00022177,2]
[311735998,1705369847657,-52.77180939,0.00022177,2]
[311735999,1705369847667,-710.79,0.00022177,2]
[311736000,1705369847677,-500.0,0.00022177,2]
[311736001,1705369847687,-720.39,0.00022177,2]
[311736002,1705369847697,-877.21,0.00022177,2]
[311736003,1705369847708,-668.43,0.00022177,2]
[311736004,1705369847718,-500.0,0.00022177,2]
[311736005,1705369847728,-709.66,0.00022177,2]
[311736006,1705369847738,-1084.69,0.00022177,2]
[311736007,1705369847749,-500.0,0.00022177,2]
[311736008,1705369847760,-500.0,0.00022177,2]
[311736009,1705369847769,-193.87610364,0.00022177,2]
[311736010,1705369847782,-372.10647776,0.00022177,2]
[311736011,1705369847792,-31.42739057,0.00022177,2]
[311736012,1705369847805,-466.70474391,0.00022177,2]
[311736013,1705369847817,-1.86786552,0.00022177,2]
[311736014,1705369847827,-1010.86,0.00022177,2]
[311736015,1705369847837,-500.0,0.00022177,2]
[311736016,1705369847848,-169.39872507,0.00022177,2]
[311736017,1705369847858,-339.68993143,0.00022177,2]